bitfinex/quotes_ETHUSD_20250623
["timestamp","ask_amount","ask_price","bid_price","bid_amount"]
[1750701381304,1.05252016,2274.1,2273.9,8.031]
[1750701381605,1.05252016,2274.2,2273.9,8.031]
[1750701381769,1.05252016,2274.1,2273.9,8.031]
[1750701381971,11.2388,2274.3,2273.6,4.39819655]
[1750701382192,10.0,2274.1,2273.6,4.39819655]
[1750701382472,10.0,2274.1,2273.7,8.029]
[1750701382874,1.05245972,2274.0,2273.7,8.029]
[1750701383275,11.2388,2274.3,2273.7,8.029]
[1750701383588,1.0524563,2274.2,2273.7,8.029]
[1750701383907,1.0524563,2274.2,2273.3,3.1463]
[1750701383908,23.32204325,2274.1,2273.3,4.3988138]
[1750701384121,1.05248488,2274.0,2273.5,12.42736839]
[1750701384327,1.05248488,2274.0,2273.9,4.39773077]
[1750701384490,11.0522279,2274.6,2273.6,4.39814215]
[1750701384690,1.0522279,2274.5,2273.7,4.3980374]
[1750701384896,2.15745069,2274.4,2273.7,4.397964]
[1750701385095,1.0522279,2274.3,2273.8,4.39789501]
[1750701385293,1.0522279,2274.2,2273.9,4.39771759]
[1750701385533,1.0522279,2274.3,2273.9,4.39771759]
[1750701385697,1.0522279,2274.2,2273.9,4.39771759]
[1750701385896,1.10522279,2274.4,2273.7,4.39800484]
[1750701386137,11.05220665,2274.3,2273.4,4.39856002]
[1750701386286,10.0,2274.1,2273.5,8.026]
[1750701386480,1.05220665,2274.0,2273.5,8.026]
[1750701386735,1.05220665,2274.0,2273.2,0.7694]
[1750701386736,10.0,2273.7,2273.1,1.13243]
[1750701386881,10.0,2273.7,2273.3,12.42379356]
[1750701387086,2.388,2274.0,2273.3,12.42376365]
[1750701387303,1.05240009,2273.9,2273.4,4.39862857]
[1750701387523,1.05240009,2273.8,2273.3,12.42381239]
[1750701387739,1.05240009,2273.9,2273.3,8.025]
[1750701387886,14.63658695,2274.8,2273.8,4.39777912]
[1750701388214,1.05222947,2274.6,2273.8,8.023]
[1750701388423,13.32181642,2274.5,2273.8,8.023]
[1750701388622,1.05222947,2274.4,2273.8,8.022]
[1750701388846,1.05222947,2274.3,2273.8,8.022]
[1750701389012,1.05222947,2274.2,2273.8,8.022]
[1750701389309,1.05222947,2274.1,2273.8,8.022]
[1750701389618,1.05222947,2274.4,2273.7,4.39802117]
[1750701389785,1.05222947,2274.3,2273.7,8.022]
[1750701389984,1.05222947,2274.2,2273.7,8.022]
[1750701390185,1.05222947,2274.1,2273.7,12.42011132]
[1750701390527,10.0,2273.7,2272.8,4.39972138]
[1750701390692,10.0,2273.3,2272.8,4.39972138]
[1750701390893,1.05296002,2273.2,2272.8,4.39972138]
[1750701391222,1.05229358,2273.2,2272.7,8.02]
[1750701391450,10.0,2273.1,2272.4,4.40048052]
[1750701391645,11.05229358,2273.1,2272.6,8.02]
[1750701391931,11.05229358,2273.1,2272.7,4.40004144]
[1750701392142,10.0,2273.1,2272.7,4.4000528]
[1750701392293,10.0,2273.1,2272.8,4.39972298]
[1750701392488,1.0518607,2273.3,2272.6,8.02]
[1750701392696,2.367,2273.5,2272.6,8.02]
[1750701392910,11.0518607,2273.4,2272.9,4.3995749]
[1750701393149,1.0518607,2273.3,2273.0,4.39944896]
[1750701393350,1.0518607,2273.4,2272.8,4.39984004]
[1750701393625,4.37382248,2274.6,2273.4,4.39868579]
[1750701393626,1.05157074,2273.8,2273.4,4.39868579]
[1750701393815,1.05157074,2274.2,2273.4,4.39868579]
[1750701394120,1.05157074,2274.2,2273.1,8.019]
[1750701394121,12.26958695,2274.0,2273.2,12.41697863]
[1750701394300,11.05157074,2273.9,2273.2,12.41697863]
[1750701394497,1.05157074,2273.8,2273.2,12.41697863]
[1750701394830,1.05157074,2273.8,2273.0,4.39936801]
[1750701394831,10.0,2273.6,2273.0,4.39936801]
[1750701395163,1.05157074,2273.5,2273.0,4.39936801]
[1750701395438,13.41857074,2273.6,2273.0,4.39937228]
[1750701395646,14.93581577,2273.6,2273.0,4.39933058]
[1750701395822,14.93581577,2273.6,2272.9,8.018]
[1750701395823,14.93581577,2273.6,2273.2,4.39905408]
[1750701396027,2.367,2273.7,2273.2,4.39898208]
[1750701396330,1.05156806,2273.6,2273.0,4.39933105]
[1750701396490,1.05156806,2273.6,2273.1,4.39926353]
[1750701397101,2.367,2273.7,2273.1,4.39926353]
[1750701397297,10.0,2273.6,2273.1,4.39926353]
[1750701397510,11.05156806,2273.6,2273.2,4.39889542]
[1750701397721,2.367,2273.7,2273.1,4.39921283]
[1750701397927,2.367,2273.7,2273.2,4.39892856]
[1750701398226,10.0,2273.6,2273.2,4.39892856]
[1750701398529,12.367,2273.9,2273.4,4.39869104]
[1750701398727,1.05157501,2273.8,2273.4,4.39869104]
[1750701398894,1.05157501,2273.8,2273.5,4.39840523]
[1750701399092,12.367,2273.9,2273.5,4.39840523]
[1750701399291,1.05188728,2273.8,2273.2,4.39901429]
[1750701399509,1.05188728,2273.8,2273.3,4.3987364]
[1750701399805,1.05188728,2273.8,2273.3,4.39877986]
[1750701400007,1.05188728,2273.7,2273.3,4.39877986]
[1750701400306,1.05188728,2273.8,2273.4,4.39856189]
[1750701400506,1.05188728,2273.8,2273.5,4.39842937]
[1750701400902,7.86,2274.0,2273.5,8.96864913]
[1750701401317,7.86,2274.0,2273.6,4.39812989]
[1750701401498,8.91202674,2274.0,2273.7,4.39809884]
[1750701401827,7.86,2274.0,2273.7,4.39809884]
[1750701402011,1.05202674,2274.1,2273.6,8.011]
[1750701402213,1.05193103,2274.2,2274.0,4.39753737]
[1750701402787,1.05193103,2274.3,2274.0,4.39753737]
[1750701403023,1.05193103,2274.3,2274.1,4.39729632]
[1750701403331,1.05193103,2274.3,2274.2,4.39715064]
[1750701403491,1.05193103,2274.4,2274.1,4.39722488]
[1750701403692,1.05193103,2274.5,2274.1,4.397344]
[1750701403892,1.05193103,2274.4,2274.0,8.009]
[1750701404129,1.05193103,2274.6,2274.0,12.40644501]
[1750701404292,1.05193103,2274.5,2274.0,12.40644501]
[1750701404628,1.05193103,2274.4,2274.1,4.39721883]
[1750701404923,1.05193103,2274.4,2274.1,4.39720382]
[1750701405114,1.05193103,2274.4,2274.1,4.397344]
[1750701405315,1.05193103,2274.5,2274.0,12.40642429]
[1750701405522,11.05193103,2274.6,2274.1,4.39733651]
[1750701405691,1.05193103,2274.5,2274.1,4.39717693]
[1750701405889,1.05193103,2274.4,2274.2,4.39714409]
[1750701406092,1.05193103,2274.5,2273.7,0.89686491]
[1750701406333,1.05193103,2274.4,2274.1,4.39733693]
[1750701406832,1.05193103,2274.5,2274.0,4.39742555]
[1750701407017,1.05193103,2274.6,2274.2,4.39705071]
[1750701407224,1.05193103,2274.5,2274.1,4.39726693]
[1750701407521,1.05193103,2274.6,2274.0,4.39739197]
[1750701407693,1.05193103,2274.5,2274.0,4.39739197]
[1750701407894,1.05193103,2274.8,2274.2,4.39715064]
[1750701408116,11.05193103,2274.9,2274.3,8.002]
[1750701408321,10.0,2274.7,2274.2,8.002]
[1750701408529,2.3321518,2274.6,2274.2,8.002]
[1750701408729,8.002,2275.1,2274.2,8.002]
[1750701408730,22.26958695,2275.4,2274.2,8.8068]
[1750701408942,12.367,2275.2,2274.3,4.39676613]
[1750701409096,13.41790877,2275.1,2274.5,4.39644927]
[1750701409297,1.05090877,2275.0,2274.6,4.39637545]
[1750701410209,2.367,2275.1,2274.6,4.39637545]
[1750701410415,2.367,2275.1,2274.5,4.39648481]
[1750701410713,2.367,2275.1,2274.3,4.39694037]
[1750701410945,1.04995888,2275.2,2274.4,1.32037404]
[1750701411152,2.367,2275.5,2274.5,4.39657067]
[1750701411490,1.0498539,2275.5,2274.9,4.39567265]
[1750701411612,3.4168539,2275.7,2274.9,7.998]
[1750701411816,1.0498539,2275.7,2275.2,4.39515572]
[1750701412113,1.0498539,2275.7,2274.9,7.998]
[1750701412340,0.22605586,2275.9,2275.8,4.39405923]
[1750701412548,2.5915122,2276.5,2275.9,4.39375883]
[1750701412849,2.5915122,2276.5,2276.1,4.39347435]
[1750701412850,10.0,2276.4,2276.1,4.39347435]
[1750701413061,10.0,2276.4,2276.0,4.39356155]
[1750701413221,11.25915122,2276.4,2276.0,4.39356155]
[1750701413426,11.25915122,2276.4,2275.9,4.3937868]
[1750701413627,11.25915122,2276.4,2275.8,4.39398031]
[1750701413823,12.26958695,2276.3,2275.6,7.994]
[1750701414027,12.26958695,2276.3,2275.3,12.38892061]
[1750701414249,11.35287382,2276.2,2275.3,7.994]
[1750701414556,11.35287382,2276.2,2275.3,12.38892195]
[1750701415047,0.55,2276.1,2275.1,4.39531095]
[1750701415298,14.63658695,2276.0,2275.2,7.993]
[1750701415652,10.0,2275.9,2274.8,6.76288662]
[1750701415832,2.4636587,2275.8,2275.0,7.992]
[1750701416753,2.4636587,2275.8,2275.0,12.38760254]
[1750701416950,2.4636587,2275.8,2275.0,7.992]
[1750701417277,10.0,2275.0,2274.1,0.8028]
[1750701417422,4.5929587,2274.9,2274.1,0.8028]
[1750701417616,4.5929587,2274.9,2274.3,4.39694153]
[1750701417815,2.366,2274.9,2274.2,4.39701194]
[1750701418016,2.366,2274.9,2274.1,12.75239152]
[1750701418250,2.346,2274.9,2274.2,4.39706623]
[1750701418651,12.346,2274.9,2274.1,8.35408262]
[1750701418858,2.4615587,2274.8,2274.1,8.35408262]
[1750701419233,2.4615587,2274.8,2274.2,4.39700666]
[1750701419443,12.346,2274.9,2274.2,4.39700666]
[1750701419621,2.346,2274.9,2274.3,4.39692719]
[1750701420456,10.0,2275.2,2274.1,7.987]
[1750701420750,12.26958695,2275.3,2274.1,7.987]
[1750701420751,2.346,2275.3,2274.6,4.39629465]
[1750701420914,2.346,2275.3,2274.7,4.39616051]
[1750701421118,10.0,2275.6,2274.8,4.39585711]
[1750701421352,2.346,2275.6,2275.0,4.39547134]
[1750701421589,2.346,2275.6,2274.9,4.39571715]
[1750701421773,2.346,2275.6,2274.7,0.8157]
[1750701421978,12.26958695,2275.4,2274.4,5.20142208]
[1750701422277,10.0,2275.0,2274.3,4.39687101]
[1750701422776,10.0,2275.0,2274.2,7.984]
[1750701422917,10.0,2275.0,2274.2,12.38014726]
[1750701423117,10.0,2275.0,2274.3,4.39687264]
[1750701423379,0.55,2274.9,2274.0,0.8048]
[1750701423676,0.55,2274.9,2254.0,0.27]
[1750701423677,10.0,2274.4,2273.8,4.39783445]
[1750701423856,12.346,2274.4,2273.8,4.39783445]
[1750701424025,12.346,2274.4,2273.3,0.7756]
[1750701424221,12.26958695,2274.8,2273.8,4.39781599]
[1750701424465,12.26958695,2274.8,2273.9,4.39754528]
[1750701424466,6.02181538,2274.7,2273.9,4.39754528]
[1750701424668,2.0801587,2274.7,2273.9,4.39759801]
[1750701424871,2.346,2274.6,2273.8,4.39781765]
[1750701425230,2.346,2274.6,2273.8,4.39782128]
[1750701425557,2.346,2274.6,2273.9,4.39769353]
[1750701425756,2.346,2274.6,2274.0,4.39744481]
[1750701426073,2.0801587,2274.7,2273.9,5.27720701]
[1750701426252,4.4261587,2274.7,2273.9,5.27720701]
[1750701426434,4.4261587,2274.7,2273.3,0.7756]
[1750701426644,0.55,2274.6,2273.4,7.98]
[1750701426841,5.4725667,2274.7,2273.8,4.39779506]
[1750701427180,3.1265667,2274.7,2273.5,4.39848214]
[1750701427326,10.0,2274.4,2273.6,5.2079166]
[1750701427525,10.0,2274.4,2273.3,10.0]
[1750701427526,10.0,2274.4,2273.4,8.7877]
[1750701427776,10.0,2274.4,2273.7,4.39801844]
[1750701428359,10.0,2274.4,2273.8,4.39791582]
[1750701428666,10.0,2274.4,2273.4,8.7877]
[1750701428872,6.12335148,2276.1,2273.8,4.39792417]
[1750701428873,2.346,2275.1,2273.8,4.39792417]
[1750701429082,2.346,2275.1,2274.2,4.39706966]
[1750701429372,12.346,2275.1,2274.4,4.39674897]
[1750701429573,10.0,2275.0,2274.3,4.3968496]
[1750701429741,2.346,2275.1,2274.3,6.07397178]
[1750701429942,3.39342472,2275.1,2274.3,6.07397178]
[1750701430141,1.04742472,2275.1,2274.3,6.07397178]
[1750701430342,0.7846,2275.5,2274.3,6.07397178]
[1750701430343,15.3726587,2275.8,2275.0,4.39549676]
[1750701430560,1.04773692,2275.7,2274.9,8.7578]
[1750701430737,2.346,2276.1,2275.0,0.67489031]
[1750701430941,1.04773692,2276.3,2275.3,4.39500075]
[1750701430942,3.39373692,2276.3,2275.3,4.39500075]
[1750701431230,3.39373692,2276.3,2275.4,4.39473021]
[1750701431429,3.39373692,2276.3,2275.5,4.39458395]
[1750701431625,10.0,2276.2,2275.6,4.39442559]
[1750701431969,10.0,2276.2,2275.2,4.39517264]
[1750701431970,13.55304489,2276.2,2275.4,12.36882791]
[1750701432134,2.5705122,2276.5,2275.5,0.7939]
[1750701432471,12.346,2276.4,2275.9,4.39371179]
[1750701432669,10.0,2276.4,2275.9,4.39385831]
[1750701433083,11.04677023,2276.4,2275.6,4.394338]
[1750701433367,10.0,2276.2,2275.6,12.36735809]
[1750701433565,10.0,2276.2,2275.5,5.18848533]
[1750701433566,10.0,2276.2,2275.5,12.3675586]
[1750701434188,22.26958695,2276.2,2275.2,5.146938]
[1750701434391,12.26958695,2276.2,2275.4,12.3657492]
[1750701434688,2.58868694,2276.3,2275.6,4.39436109]
[1750701434889,2.58868694,2276.3,2275.7,4.39422816]
[1750701435190,2.58868694,2276.3,2275.8,4.39403565]
[1750701435364,0.2245122,2276.5,2276.2,4.39312495]
[1750701435563,0.2245122,2276.5,2275.7,0.7828]
[1750701435768,12.49409915,2276.5,2275.8,7.969]
[1750701436150,12.49409915,2276.5,2275.6,4.39442154]
[1750701436151,1.04606841,2276.4,2275.6,4.39442154]
[1750701436554,1.04606841,2276.4,2275.4,14.39475675]
[1750701436555,0.55,2276.1,2275.2,4.39513185]
[1750701436761,22.26958695,2275.9,2275.2,7.968]
[1750701437179,1.04624178,2275.8,2275.2,12.36318789]
[1750701437378,11.04624178,2275.9,2275.3,4.39500106]
[1750701437584,2.345,2275.8,2275.2,12.36313222]
[1750701437777,11.2819587,2276.0,2275.3,4.39500846]
[1750701437978,1.0463191,2275.9,2275.2,12.36312747]
[1750701438183,3.40147367,2275.9,2275.2,12.36320581]
[1750701438378,5.74647367,2275.9,2275.2,12.36320581]
[1750701438595,5.74647367,2275.9,2274.8,0.8283]
[1750701438762,5.74647367,2275.9,2275.1,12.36032002]
[1750701438964,1.70284324,2275.8,2275.1,12.36032002]
[1750701439283,3.3913191,2275.9,2275.2,4.39507871]
[1750701440191,1.0463191,2275.9,2275.1,7.965]
[1750701440431,2.345,2276.2,2275.6,4.3943485]
[1750701440596,1.2708313,2276.5,2275.9,4.39378573]
[1750701440760,1.40799533,2276.5,2275.6,4.39435324]
[1750701440957,4.79931443,2276.5,2275.7,12.35722379]
[1750701441170,10.0,2276.4,2275.7,7.962]
[1750701441370,11.0463191,2276.4,2275.7,12.35616079]
[1750701441597,1.0463191,2276.4,2275.7,7.962]
[1750701441803,0.24543144,2276.3,2275.6,7.962]
[1750701442005,0.24543144,2276.3,2275.6,12.35635307]
[1750701442206,11.40799533,2276.5,2275.7,4.39408638]
[1750701442403,11.40799533,2276.5,2275.4,4.39483079]
[1750701442404,2.345,2276.3,2275.3,5.21791702]
[1750701442707,2.345,2276.3,2275.5,4.39463854]
[1750701442911,2.345,2276.3,2275.6,4.39444405]
[1750701443097,2.345,2276.3,2276.0,4.3935801]
[1750701443286,2.345,2276.3,2276.1,4.39347947]
[1750701443482,2.5695122,2276.5,2276.2,4.39328184]
[1750701443687,2.5695122,2276.5,2275.9,4.39378235]
[1750701443983,2.5695122,2276.5,2276.1,4.39329256]
[1750701444185,0.2245122,2276.5,2276.2,4.39327828]
[1750701444501,2.5695122,2276.5,2276.1,4.39341747]
[1750701444695,0.2245122,2276.5,2276.0,4.39357198]
[1750701445015,0.2245122,2276.5,2275.9,5.2724827]
[1750701445312,0.2245122,2276.5,2275.9,4.39383716]
[1750701445606,0.2245122,2276.5,2275.7,4.39425231]
[1750701445809,2.5695122,2276.5,2276.1,4.39337018]
[1750701446306,2.5695122,2276.5,2276.0,4.39357612]
[1750701446720,0.2245122,2276.5,2276.1,4.39336519]
[1750701446896,0.2245122,2276.5,2276.2,4.39319689]
[1750701447098,0.2245122,2276.5,2276.1,4.39339056]
[1750701447295,0.2245122,2276.5,2276.3,4.39295223]
[1750701447508,0.2245122,2276.5,2276.4,5.17700107]
[1750701447895,0.2245122,2276.5,2276.4,4.39290107]
[1750701448101,0.2245122,2276.5,2276.4,12.34790107]
[1750701449715,0.2245122,2276.5,2276.1,1.66279968]
[1750701449882,0.2245122,2276.5,2276.1,7.952]
[1750701450086,0.2245122,2276.5,2276.4,4.39290107]
[1750701450525,8.9037736,2277.7,2276.5,0.55]
[1750701450711,2.5504,2278.0,2277.3,4.39106817]
[1750701451017,0.25504,2277.9,2277.3,4.39114355]
[1750701451223,10.25504,2277.9,2277.4,4.39093391]
[1750701451395,1.0437736,2277.9,2277.5,4.39068587]
[1750701451600,2.5504,2278.0,2277.5,4.39068587]
[1750701451809,10.0,2277.9,2277.4,4.39085706]
[1750701452412,0.22377623,2278.3,2277.5,0.8243]
[1750701452601,0.2244,2278.5,2278.1,4.38951951]
[1750701452788,0.2244,2278.8,2278.2,4.38926226]
[1750701452987,0.50200342,2278.7,2277.9,4.38983311]
[1750701453201,0.50200342,2278.7,2278.0,12.33766337]
[1750701453523,0.2245122,2278.7,2278.0,7.948]
[1750701453724,0.2245122,2278.7,2278.4,4.38893802]
[1750701454021,0.2245122,2278.7,2278.3,4.38915454]
[1750701454207,0.2245122,2278.7,2278.4,4.38892369]
[1750701454810,0.2245122,2278.7,2278.2,4.38928753]
[1750701455016,0.2245122,2278.7,2278.3,7.947]
[1750701455203,0.2245122,2278.7,2278.3,7.944]
[1750701455399,0.2245122,2278.7,2278.4,4.38888457]
[1750701456510,0.2245122,2278.7,2278.6,4.3886597]
[1750701456918,0.2245122,2278.7,2278.6,14.3886597]
[1750701457221,1.03734564,2280.2,2278.8,0.8232]
[1750701457418,12.26958695,2280.2,2278.9,0.8232]
[1750701457718,10.2244,2280.1,2279.1,4.38753054]
[1750701457923,2.4818987,2280.0,2279.1,4.38753054]
[1750701458232,2.4818987,2280.0,2279.0,7.942]
[1750701458433,2.4818987,2280.0,2278.9,7.53624551]
[1750701458434,12.26958695,2280.0,2279.1,7.939]
[1750701458733,10.0,2279.6,2278.9,7.939]
[1750701458902,0.2244,2279.5,2278.9,7.939]
[1750701459736,0.2244,2279.5,2278.9,12.32698067]
[1750701459926,0.2244,2279.5,2279.0,4.38775669]
[1750701460130,0.2244,2279.5,2279.1,4.38769054]
[1750701460317,0.2244,2279.9,2279.1,4.38759246]
[1750701460512,10.0,2279.8,2279.1,4.38759246]
[1750701460714,10.0,2279.8,2279.0,4.38784438]
[1750701461013,10.0,2279.8,2279.0,7.937]
[1750701461213,0.55,2279.7,2279.0,7.937]
[1750701461536,10.0,2279.8,2279.1,4.38758063]
[1750701461757,11.2577324,2279.8,2279.1,4.38765388]
[1750701462051,11.2577324,2279.8,2279.0,7.937]
[1750701462209,11.2577324,2279.8,2279.0,12.32474799]
[1750701462539,0.2244,2279.7,2278.7,4.38846419]
[1750701462712,0.2244,2279.7,2278.8,12.32313683]
[1750701463036,10.0,2279.4,2278.9,7.934]
[1750701463237,0.2244,2279.3,2278.9,7.934]
[1750701463641,0.2244,2279.3,2278.9,12.32205711]
[1750701464139,0.2244,2279.3,2278.9,7.934]
[1750701464531,0.2244,2279.3,2278.9,12.3220723]
[1750701464846,0.2244,2279.3,2279.0,4.38788796]
[1750701465028,0.2244,2279.6,2279.3,4.38722006]
[1750701465202,2.5484,2279.9,2279.4,4.3869982]
[1750701465539,0.2244,2279.9,2279.4,12.31801778]
[1750701465706,0.2244,2279.9,2279.4,7.931]
[1750701466011,0.2244,2279.9,2279.3,7.931]
[1750701467642,10.0,2279.8,2279.3,12.31829555]
[1750701467829,12.26958695,2279.7,2278.7,0.8251]
[1750701468145,10.2244,2279.3,2278.5,12.31675214]
[1750701468345,10.2244,2279.3,2278.6,4.38864606]
[1750701468719,10.2244,2279.3,2278.3,4.38906877]
[1750701468943,2.4816987,2279.2,2278.5,7.928]
[1750701469249,2.4816987,2279.2,2278.3,4.38923758]
[1750701469541,2.4816987,2279.2,2278.4,7.928]
[1750701469844,10.2244,2279.1,2278.4,12.31595115]
[1750701470019,0.2244,2279.0,2278.0,4.38981562]
[1750701470220,0.2244,2279.0,2277.9,10.55]
[1750701470221,10.0,2278.7,2277.9,4.38986749]
[1750701470528,10.0,2278.7,2277.6,5.21657816]
[1750701470529,10.2244,2278.5,2277.6,4.39051782]
[1750701470704,10.2244,2278.5,2277.3,7.54008585]
[1750701470705,22.49398695,2278.5,2277.3,5.21708585]
[1750701470909,0.55,2278.4,2277.5,4.39077509]
[1750701471105,12.26958695,2278.2,2277.6,7.926]
[1750701471348,12.26958695,2278.2,2277.1,17.25855035]
[1750701471349,10.0,2278.1,2277.4,4.39087982]
[1750701471509,0.2244,2278.0,2277.3,4.39116497]
[1750701471711,0.2244,2278.0,2277.4,7.925]
[1750701471916,0.2244,2278.0,2277.3,4.39115294]
[1750701472258,0.55,2277.9,2277.3,7.925]
[1750701472461,0.55,2277.9,2276.7,0.8215]
[1750701472462,0.55,2277.7,2276.7,5.21376772]
[1750701472760,10.0,2277.5,2276.7,13.07082721]
[1750701473132,11.03805602,2277.5,2276.8,4.39209582]
[1750701474214,11.03805602,2277.5,2276.9,4.39191798]
[1750701474545,11.03805602,2277.5,2276.8,4.39204707]
[1750701475352,11.03805602,2277.5,2277.0,4.39158682]
[1750701475560,13.73130432,2277.5,2276.9,4.39182307]
[1750701475860,1.03805602,2277.4,2276.9,4.39182307]
[1750701476356,1.03805602,2277.4,2276.8,4.392102]
[1750701477157,1.81245602,2277.3,2276.1,0.7628]
[1750701477456,10.2244,2277.1,2276.4,4.39277621]
[1750701477655,3.39126032,2277.0,2276.2,4.39311848]
[1750701477996,1.03805602,2276.9,2276.6,4.39251178]
[1750701478120,1.03805602,2277.0,2276.7,4.39213289]
[1750701478319,0.2244,2277.1,2276.9,4.3919364]
[1750701479139,1.03805602,2277.3,2276.8,4.39211238]
[1750701479140,1.03805602,2277.3,2276.8,7.924]
[1750701479346,0.2244,2277.9,2277.3,4.39105676]
[1750701479517,1.03805602,2277.8,2277.5,4.39075125]
[1750701479718,1.03805602,2277.7,2277.4,4.39087251]
[1750701479919,0.2244,2277.9,2277.3,12.3141364]
[1750701479920,1.03805602,2277.8,2277.3,4.39110009]
[1750701480255,0.2244,2277.9,2277.4,7.923]
[1750701480433,1.04173312,2277.8,2277.4,7.923]
[1750701480632,1.04171316,2277.8,2277.6,4.39047676]
[1750701480957,1.04171316,2277.8,2277.7,4.39039381]
[1750701481265,1.04161757,2278.1,2277.9,4.38990295]
[1750701481418,1.04161757,2278.2,2278.0,4.38981562]
[1750701481619,1.04169818,2278.2,2278.0,4.38981562]
[1750701481852,1.04169818,2278.4,2278.2,4.38943025]
[1750701482018,1.04169818,2278.5,2278.2,4.38943025]
[1750701482220,1.04151625,2278.5,2278.3,4.38923758]
[1750701482414,1.04176921,2278.4,2278.2,7.921]
[1750701482618,8.0844,2278.9,2278.2,8.6776]
[1750701482863,1.04164818,2278.8,2278.4,4.38902485]
[1750701483029,1.04164818,2278.7,2278.2,9.54536]
[1750701483230,1.0416182,2278.8,2278.2,9.54536]
[1750701483456,0.2244,2278.9,2278.2,9.54536]
[1750701483659,1.04157682,2278.8,2278.2,13.93474353]
[1750701483831,0.1244,2278.9,2278.3,5.78257848]
[1750701484031,1.04159497,2278.8,2278.4,7.92]
[1750701484249,0.1244,2278.9,2278.4,12.30904346]
[1750701484460,1.04159497,2278.8,2278.4,12.30904346]
[1750701484661,1.04159497,2278.8,2278.3,1.39347435]
[1750701484828,1.04159497,2278.8,2278.4,7.92]
[1750701485024,1.04159497,2278.7,2278.2,7.919]
[1750701485229,1.04159497,2278.6,2278.2,7.919]
[1750701485650,1.04159497,2278.6,2278.3,4.38913105]
[1750701485960,2.309,2278.7,2278.3,4.38913105]
[1750701485961,3.35059497,2278.7,2278.3,4.38913105]
[1750701486145,1.04159497,2278.6,2278.2,7.919]
[1750701486347,3.35059497,2278.7,2278.1,7.918]
[1750701486661,11.16599497,2278.6,2278.0,7.917]
[1750701486847,1.04159497,2278.5,2278.0,7.917]
[1750701487368,11.16599497,2278.6,2278.2,4.38933483]
[1750701487523,1.16599497,2278.6,2278.3,4.38914757]
[1750701487727,0.1244,2278.6,2278.0,12.3067928]
[1750701487943,0.1244,2278.6,2278.3,4.38912409]
[1750701488353,0.1244,2278.6,2278.4,4.38901042]
[1750701488661,0.1244,2278.6,2278.1,5.62027646]
[1750701489039,0.1244,2278.6,2278.2,7.915]
[1750701489869,0.1244,2278.6,2277.6,10.7505]
[1750701490028,0.1244,2278.6,2277.9,4.3898919]
[1750701490574,0.1244,2278.6,2278.0,7.914]
[1750701490733,0.1244,2278.6,2278.3,4.38913957]
[1750701491092,0.1244,2278.6,2278.1,4.38947528]
[1750701491632,0.1244,2278.6,2278.2,4.38942569]
[1750701491946,0.1244,2278.6,2278.3,7.913]
[1750701492345,0.1244,2278.6,2278.3,12.30219464]
[1750701492546,1.04284287,2278.7,2278.3,12.30214032]
[1750701492854,0.1244,2278.9,2278.3,9.14321403]
[1750701493053,1.1678451,2278.9,2278.4,7.912]
[1750701493255,0.1244,2278.9,2278.4,7.912]
[1750701493455,1.0434451,2278.8,2278.4,7.912]
[1750701494136,0.1244,2278.9,2278.5,4.38876519]
[1750701494466,10.0,2279.1,2278.4,7.912]
[1750701494467,1.0434451,2279.1,2278.8,4.38827413]
[1750701494668,1.0434451,2279.1,2278.4,8.7022]
[1750701494855,1.0434451,2279.1,2278.7,4.38837597]
[1750701495060,1.0434451,2279.1,2278.0,4.38981562]
[1750701495239,1.0434451,2279.0,2278.1,12.29960269]
[1750701495441,1.0434451,2278.9,2278.3,4.38915832]
[1750701495655,1.0434451,2279.1,2278.4,4.38895444]
[1750701495971,1.0434451,2279.0,2278.5,7.91]
[1750701496274,1.0434451,2278.9,2278.5,4.38882074]
[1750701496470,1.0434451,2279.0,2278.5,12.29782074]
[1750701496673,1.0434451,2279.0,2278.5,7.909]
[1750701496836,11.0434451,2279.1,2278.7,4.38831864]
[1750701497271,1.0434451,2279.0,2278.7,4.38831864]
[1750701497575,10.0,2279.1,2278.6,4.38862446]
[1750701497576,11.0434451,2279.1,2278.6,4.38862446]
[1750701497771,1.0434451,2279.0,2278.2,0.8]
[1750701497975,1.0434451,2279.0,2278.4,4.38886435]
[1750701498177,1.0434451,2279.0,2278.3,7.907]
[1750701498380,3.47855658,2279.7,2278.5,0.8037]
[1750701498563,1.04515658,2279.6,2279.2,4.38737701]
[1750701498767,0.1244,2279.7,2279.3,7.907]
[1750701499085,0.1244,2279.7,2279.3,12.29430352]
[1750701499380,0.1244,2279.7,2279.3,7.907]
[1750701499754,0.1244,2279.7,2279.4,4.38711373]
[1750701500056,0.1244,2279.7,2279.3,7.907]
[1750701500393,0.1244,2279.7,2278.9,4.38800888]
[1750701500599,0.1244,2279.7,2279.0,12.29178995]
[1750701500801,0.1244,2279.7,2279.1,4.3876211]
[1750701500956,0.1244,2279.7,2279.0,12.2917756]
[1750701501597,0.1244,2279.7,2279.1,4.38761595]
[1750701501834,0.1244,2279.7,2278.9,0.51653089]
[1750701501970,0.1244,2279.7,2279.4,4.38703088]
[1750701502168,0.1244,2280.0,2279.8,4.38622948]
[1750701502369,0.1244,2280.3,2279.9,4.38615728]
[1750701502675,0.1244,2280.3,2279.8,7.903]
[1750701502987,0.1244,2280.3,2279.8,12.28934832]
[1750701503190,1.04515658,2280.6,2280.0,4.3857976]
[1750701503355,1.04515658,2280.6,2279.8,9.56907036]
[1750701503356,12.26958695,2280.6,2279.8,1.66607036]
[1750701503555,12.26958695,2280.3,2279.3,4.3871668]
[1750701503780,10.0,2280.1,2279.3,7.901]
[1750701504094,0.1244,2280.0,2279.3,7.901]
[1750701504295,1.59207303,2280.1,2279.3,7.901]
[1750701504468,0.6744,2280.2,2279.3,12.28819656]
[1750701504669,1.06744,2280.1,2279.4,4.38711634]
[1750701504866,1.06744,2280.1,2279.3,12.28821827]
[1750701505073,1.06744,2280.1,2279.4,7.9]
[1750701505757,1.06744,2280.1,2279.2,4.38740117]
[1750701505758,10.0,2280.0,2279.1,4.38759178]
[1750701505964,0.1244,2279.9,2279.2,12.28750402]
[1750701506197,2.4705427,2279.9,2279.2,12.28750402]
[1750701507062,2.4705427,2279.9,2279.3,4.38719691]
[1750701507380,0.1244,2279.9,2279.3,4.38730176]